fUST/lending_fUST_20240906
["ID","MTS","AMOUNT","RATE_DAILY","PERIOD"]
[337276675,1725573086062,-500.0,0.00023013,2]
[337276676,1725573086074,-500.0,0.00023013,2]
[337276677,1725573086083,-500.0,0.00023013,2]
[337276678,1725573086093,-690.94,0.00023013,2]
[337276679,1725573086104,-509.12503211,0.00023013,2]
[337276680,1725573086113,-371.55986098,0.00023013,2]
[337276681,1725573086133,-511.55783249,0.00023013,2]
[337276682,1725573086143,-500.0,0.00023013,2]
[337276683,1725573086154,-500.0,0.00023013,2]
[337276684,1725573086164,-500.0,0.00023013,2]
[337276685,1725573086174,-500.0,0.00023013,2]
[337276686,1725573086184,-500.0,0.00023013,2]
[337276687,1725573086193,-385.73250257,0.00023013,2]
[337276688,1725573086203,-500.0,0.00023013,2]
[337276689,1725573086213,-500.0,0.00023013,2]
[337276690,1725573086223,-500.0,0.00023013,2]
[337276691,1725573086233,-722.69,0.00023013,2]
[337276692,1725573086244,-500.0,0.00023013,2]
[337276693,1725573086254,-500.0,0.00023013,2]
[337276694,1725573086264,-500.0,0.00023013,2]
[337276695,1725573086275,-1492.06,0.00023013,2]
[337276696,1725573086285,-160.52630265,0.00023013,2]
[337276697,1725573086296,-500.0,0.00023013,2]
[337276698,1725573086305,-500.0,0.00023013,2]
[337276699,1725573086316,-500.0,0.00023013,2]
[337276700,1725573086326,-500.0,0.00023013,2]
[337276701,1725573086336,-500.0,0.00023013,2]
[337276702,1725573086346,-500.0,0.00023013,2]
[337276703,1725573086356,-500.0,0.00023013,2]
[337276704,1725573086367,-500.0,0.00023013,2]
[337276705,1725573086376,-500.0,0.00023013,2]
[337276706,1725573086388,-500.0,0.00023013,2]
[337276707,1725573086401,-510.12818433,0.00023013,2]
[337276708,1725573086411,-802.19,0.00023013,2]
[337276709,1725573086423,-500.0,0.00023013,2]
[337276710,1725573086434,-500.0,0.00023013,2]
[337276711,1725573086445,-500.0,0.00023013,2]
[337276712,1725573086456,-500.0,0.00023013,2]
[337276713,1725573086465,-500.0,0.00023013,2]
[337276714,1725573086475,-552.14,0.00023013,2]
[337276715,1725573086485,-500.0,0.00023013,2]
[337276716,1725573086495,-500.0,0.00023013,2]
[337276717,1725573086506,-500.0,0.00023013,2]
[337276718,1725573086516,-508.1347743,0.00023013,2]
[337276719,1725573086528,-990.72,0.00023013,2]
[337276720,1725573086538,-500.0,0.00023013,2]
[337276721,1725573086548,-500.0,0.00023013,2]
[337276722,1725573086558,-500.0,0.00023013,2]
[337276723,1725573086568,-967.82,0.00023013,2]
[337276724,1725573086578,-888.41,0.00023013,2]
[337276725,1725573086587,-500.0,0.00023013,2]
[337276726,1725573086597,-285.19238878,0.00023013,2]
[337276727,1725573086607,-606.39,0.00023013,2]
[337276728,1725573086618,-500.0,0.00023013,2]
[337276729,1725573086628,-500.0,0.00023013,2]
[337276730,1725573086638,-500.0,0.00023013,2]
[337276731,1725573086648,-1160.38,0.00023013,2]
[337276732,1725573086658,-1034.45,0.00023013,2]
[337276733,1725573086668,-500.0,0.00023013,2]
[337276734,1725573086677,-644.21379258,0.00023013,2]
[337276735,1725573086686,-500.0,0.00023013,2]
[337276736,1725573086696,-500.0,0.00023013,2]
[337276737,1725573086705,-500.0,0.00023013,2]
[337276738,1725573086715,-500.0,0.00023013,2]
[337276739,1725573086724,-500.0,0.00023013,2]
[337276740,1725573086734,-500.0,0.00023013,2]
[337276741,1725573086744,-500.0,0.00023013,2]
[337276742,1725573086754,-500.0,0.00023013,2]
[337276743,1725573086763,-500.0,0.00023013,2]
[337276744,1725573086773,-500.0,0.00023013,2]
[337276745,1725573086782,-500.0,0.00023013,2]
[337276746,1725573086792,-500.0,0.00023013,2]
[337276747,1725573086801,-500.0,0.00023013,2]
[337276748,1725573086811,-500.0,0.00023013,2]
[337276749,1725573086821,-500.0,0.00023013,2]
[337276750,1725573086831,-395.5298673,0.00023013,2]
[337276751,1725573086840,-500.0,0.00023013,2]
[337276752,1725573086850,-500.0,0.00023013,2]
[337276753,1725573086860,-500.0,0.00023013,2]
[337276754,1725573086869,-500.0,0.00023013,2]
[337276755,1725573086879,-500.0,0.00023013,2]
[337276756,1725573086889,-500.0,0.00023013,2]
[337276757,1725573086898,-500.0,0.00023013,2]
[337276758,1725573086907,-1055.78,0.00023013,2]
[337276759,1725573086917,-709.32,0.00023013,2]
[337276760,1725573086926,-504.12657551,0.00023013,2]
[337276761,1725573086936,-500.0,0.00023013,2]
[337276762,1725573086947,-500.0,0.00023013,2]
[337276763,1725573086956,-500.0,0.00023013,2]
[337276764,1725573086966,-528.03,0.00023013,2]
[337276765,1725573086976,-500.0,0.00023013,2]
[337276766,1725573086986,-500.0,0.00023013,2]
[337276767,1725573086997,-500.0,0.00023013,2]
[337276768,1725573087008,-504.85802604,0.00023013,2]
[337276769,1725573087019,-500.0,0.00023013,2]
[337276770,1725573087029,-500.0,0.00023013,2]
[337276771,1725573087039,-500.0,0.00023013,2]
[337276772,1725573087050,-500.0,0.00023013,2]
[337276773,1725573087062,-500.0,0.00023013,2]
[337276774,1725573087073,-500.0,0.00023013,2]
[337276775,1725573087084,-500.0,0.00023013,2]
[337276776,1725573087095,-500.0,0.00023013,2]
[337276777,1725573087105,-1309.6,0.00023013,2]
[337276778,1725573087117,-597.29,0.00023013,2]
[337276779,1725573087128,-500.0,0.00023013,2]
[337276780,1725573087138,-500.0,0.00023013,2]
[337276781,1725573087149,-707.89,0.00023013,2]
[337276782,1725573087280,-500.0,0.00023013,2]
[337276783,1725573087290,-500.0,0.00023013,2]
[337276784,1725573087301,-500.0,0.00023013,2]
[337276785,1725573087314,-637.08,0.00023013,2]
[337276786,1725573087324,-500.0,0.00023013,2]
[337276787,1725573087334,-500.0,0.00023013,2]
[337276788,1725573087344,-500.0,0.00023013,2]
[337276789,1725573087355,-500.0,0.00023013,2]
[337276790,1725573087366,-500.0,0.00023013,2]
[337276791,1725573087376,-500.0,0.00023013,2]
[337276792,1725573087386,-500.0,0.00023013,2]
[337276793,1725573087396,-500.0,0.00023013,2]
[337276794,1725573087406,-500.0,0.00023013,2]
[337276795,1725573087417,-500.0,0.00023013,2]
[337276796,1725573087429,-504.28863208,0.00023013,2]
[337276797,1725573087440,-500.0,0.00023013,2]
[337276798,1725573087450,-500.0,0.00023013,2]
[337276799,1725573087459,-500.0,0.00023013,2]
[337276800,1725573087469,-1529.25,0.00023013,2]
[337276801,1725573087479,-500.0,0.00023013,2]
[337276802,1725573087489,-500.0,0.00023013,2]
[337276803,1725573087499,-512.48,0.00023013,2]
[337276804,1725573087510,-1497.88,0.00023013,2]
[337276805,1725573087520,-500.0,0.00023013,2]
[337276806,1725573087533,-3384.84,0.00023013,2]
[337276807,1725573087545,-1224.58,0.00023013,2]
[337276808,1725573087556,-500.0,0.00023013,2]
[337276809,1725573087568,-256.49905206,0.00023013,2]
[337276810,1725573087579,-447.58883301,0.00023013,2]
[337276811,1725573087590,-478.52910819,0.00023013,2]
[337276812,1725573087603,-500.0,0.00023013,2]
[337276813,1725573087614,-500.0,0.00023013,2]
[337276814,1725573087624,-500.0,0.00023013,2]
[337276815,1725573087634,-531.72368888,0.00023013,2]
[337276816,1725573087644,-500.0,0.00023013,2]
[337276817,1725573087654,-500.0,0.00023013,2]
[337276818,1725573087665,-1508.59,0.00023013,2]
[337276819,1725573087676,-500.0,0.00023013,2]
[337276820,1725573087687,-500.0,0.00023013,2]
[337276821,1725573087697,-948.48,0.00023013,2]
[337276822,1725573087707,-500.0,0.00023013,2]
[337276823,1725573087716,-500.0,0.00023013,2]
[337276824,1725573087727,-500.0,0.00023013,2]
[337276825,1725573087737,-490.41293969,0.00023013,2]
[337276826,1725573087747,-509.6,0.00023013,2]
[337276827,1725573087758,-500.0,0.00023013,2]
[337276828,1725573087768,-3334.83,0.00023013,2]
[337276829,1725573087781,-500.0,0.00023013,2]
[337276830,1725573087791,-956.86,0.00023013,2]
[337276831,1725573087800,-500.0,0.00023013,2]
[337276832,1725573087809,-500.0,0.00023013,2]
[337276833,1725573087821,-500.0,0.00023013,2]
[337276834,1725573087831,-807.1,0.00023013,2]
[337276835,1725573087843,-500.0,0.00023013,2]
[337276836,1725573087853,-500.0,0.00023013,2]
[337276837,1725573087864,-500.0,0.00023013,2]
[337276838,1725573087876,-457.34267231,0.00023013,2]
[337276839,1725573087886,-500.0,0.00023013,2]
[337276840,1725573087898,-545.62,0.00023013,2]
[337276841,1725573087907,-500.0,0.00023013,2]
[337276842,1725573087919,-500.0,0.00023013,2]
[337276843,1725573087931,-500.0,0.00023013,2]
[337276844,1725573087943,-500.0,0.00023013,2]
[337276845,1725573087955,-500.0,0.00023013,2]
[337276846,1725573087965,-500.0,0.00023013,2]
[337276847,1725573087977,-498.08176848,0.00023013,2]
[337276848,1725573087988,-500.0,0.00023013,2]
[337276849,1725573087998,-1234.38,0.00023013,2]
[337276850,1725573088009,-1688.93,0.00023013,2]
[337276851,1725573088019,-506.01236495,0.00023013,2]
[337276852,1725573088030,-500.0,0.00023013,2]
[337276853,1725573088040,-500.0,0.00023013,2]
[337276854,1725573088050,-500.0,0.00023013,2]
[337276855,1725573088062,-500.0,0.00023013,2]
[337276856,1725573088073,-500.0,0.00023013,2]
[337276857,1725573088083,-775.84,0.00023013,2]
[337276858,1725573088092,-6155.32,0.00023013,2]
[337276859,1725573088101,-500.0,0.00023013,2]
[337276860,1725573088111,-500.0,0.00023013,2]
[337276861,1725573088121,-500.0,0.00023013,2]
[337276862,1725573088130,-1513.75,0.00023013,2]
[337276863,1725573088139,-500.0,0.00023013,2]
[337276864,1725573088148,-500.0,0.00023013,2]
[337276865,1725573088158,-500.0,0.00023013,2]
[337276866,1725573088167,-500.0,0.00023013,2]
[337276867,1725573088176,-500.0,0.00023013,2]
[337276868,1725573088185,-200.0,0.00023013,2]
[337276869,1725573088194,-1384.94,0.00023013,2]
[337276870,1725573088203,-891.8,0.00023013,2]
[337276871,1725573088212,-1454.37,0.00023013,2]
[337276872,1725573088222,-500.0,0.00023013,2]
[337276873,1725573088231,-727.07,0.00023013,2]
[337276874,1725573088240,-500.0,0.00023013,2]
[337276875,1725573088249,-803.53,0.00023013,2]
[337276876,1725573088258,-500.0,0.00023013,2]
[337276877,1725573088267,-500.0,0.00023013,2]
[337276878,1725573088276,-500.0,0.00023013,2]
[337276879,1725573088285,-500.0,0.00023013,2]
[337276880,1725573088295,-500.0,0.00023013,2]
[337276881,1725573088305,-500.0,0.00023013,2]
[337276882,1725573088320,-500.0,0.00023013,2]
[337276883,1725573088330,-3161.3,0.00023013,2]
[337276884,1725573088339,-1185.19,0.00023013,2]
[337276885,1725573088349,-831.41,0.00023013,2]
[337276886,1725573088358,-500.0,0.00023013,2]
[337276887,1725573088368,-496.01694356,0.00023013,2]
[337276888,1725573088377,-1174.57,0.00023013,2]
[337276889,1725573088386,-500.0,0.00023013,2]
[337276890,1725573088396,-500.0,0.00023013,2]
[337276891,1725573088406,-500.0,0.00023013,2]
[337276892,1725573088415,-7144.8,0.00023013,2]
[337276893,1725573088425,-500.0,0.00023013,2]
[337276894,1725573088434,-500.0,0.00023013,2]
[337276895,1725573088443,-11733.4,0.00023013,2]
[337276896,1725573088453,-500.0,0.00023013,2]
[337276897,1725573088462,-500.0,0.00023013,2]
[337276898,1725573088472,-500.0,0.00023013,2]
[337276899,1725573088481,-526.00601963,0.00023013,2]
[337276900,1725573088491,-4398.52,0.00023013,2]
[337276901,1725573088500,-1185.15,0.00023013,2]
[337276902,1725573088511,-544.5,0.00023013,2]
[337276903,1725573088522,-500.0,0.00023013,2]
[337276904,1725573088535,-13227.74,0.00023013,2]
[337276905,1725573088547,-1466.8,0.00023013,2]
[337276906,1725573088559,-500.0,0.00023013,2]
[337276907,1725573088571,-500.0,0.00023013,2]
[337276908,1725573088583,-454.10024338,0.00023013,2]
[337276909,1725573088594,-500.0,0.00023013,2]
[337276910,1725573088607,-500.0,0.00023013,2]
[337276911,1725573088620,-500.0,0.00023013,2]
[337276912,1725573088631,-8686.28,0.00023013,2]
[337276913,1725573088641,-1353.11,0.00023013,2]
[337276914,1725573088651,-500.0,0.00023013,2]
[337276915,1725573088662,-500.0,0.00023013,2]
[337276916,1725573088673,-500.0,0.00023013,2]
[337276917,1725573088684,-500.0,0.00023013,2]
[337276918,1725573088694,-500.0,0.00023013,2]
[337276919,1725573088705,-500.0,0.00023013,2]
[337276920,1725573088715,-500.0,0.00023013,2]
[337276921,1725573088727,-590.9,0.00023013,2]
[337276922,1725573088738,-704.28,0.00023013,2]
[337276923,1725573088749,-1233.53,0.00023013,2]
[337276924,1725573088760,-351.92754815,0.00023013,2]
[337276925,1725573088771,-500.0,0.00023013,2]
[337276926,1725573088783,-500.0,0.00023013,2]
[337276927,1725573088795,-900.4,0.00023013,2]
[337276928,1725573088806,-500.0,0.00023013,2]
[337276929,1725573088817,-1358.39,0.00023013,2]
[337276930,1725573088829,-500.0,0.00023013,2]
[337276931,1725573088840,-500.0,0.00023013,2]
[337276932,1725573088852,-823.63,0.00023013,2]
[337276933,1725573088864,-544.61817629,0.00023013,2]
[337276934,1725573088876,-500.0,0.00023013,2]
[337276935,1725573088887,-509.12,0.00023013,2]
[337276936,1725573088897,-7723.59,0.00023013,2]
[337276937,1725573088909,-1103.42,0.00023013,2]
[337276938,1725573088920,-500.0,0.00023013,2]
[337276939,1725573088935,-500.0,0.00023013,2]
[337276940,1725573088946,-500.0,0.00023013,2]
[337276941,1725573088956,-500.0,0.00023013,2]
[337276942,1725573088967,-500.0,0.00023013,2]
[337276943,1725573088977,-628.33,0.00023013,2]
[337276944,1725573088986,-500.0,0.00023013,2]
[337276945,1725573088996,-500.0,0.00023013,2]
[337276946,1725573089006,-2578.29,0.00023013,2]
[337276947,1725573089015,-500.0,0.00023013,2]
[337276948,1725573089025,-500.0,0.00023013,2]
[337276949,1725573089034,-500.0,0.00023013,2]
[337276950,1725573089044,-500.0,0.00023013,2]
[337276951,1725573089056,-500.0,0.00023013,2]
[337276952,1725573089066,-1129.73,0.00023013,2]
[337276953,1725573089078,-1133.56,0.00023013,2]
[337276954,1725573089089,-1144.17,0.00023013,2]
[337276955,1725573089100,-500.0,0.00023013,2]
[337276956,1725573089112,-500.0,0.00023013,2]
[337276957,1725573089123,-938.87,0.00023013,2]
[337276958,1725573089135,-500.0,0.00023013,2]
[337276959,1725573089147,-500.0,0.00023013,2]
[337276960,1725573089157,-3954.36,0.00023013,2]
[337276961,1725573089169,-500.0,0.00023013,2]
[337276962,1725573089180,-500.0,0.00023013,2]
[337276963,1725573089191,-563.72,0.00023013,2]
[337276964,1725573089203,-500.0,0.00023013,2]
[337276965,1725573089214,-500.0,0.00023013,2]
[337276966,1725573089225,-828.83,0.00023013,2]
[337276967,1725573089236,-500.0,0.00023013,2]
[337276968,1725573089245,-7650.67,0.00023013,2]
[337276969,1725573089255,-500.0,0.00023013,2]
[337276970,1725573089264,-686.81,0.00023013,2]
[337276971,1725573089275,-638.15,0.00023013,2]
[337276972,1725573089285,-500.0,0.00023013,2]
[337276973,1725573089295,-500.0,0.00023013,2]
[337276974,1725573089305,-500.0,0.00023013,2]
[337276975,1725573089315,-500.0,0.00023013,2]
[337276976,1725573089325,-871.34,0.00023013,2]
[337276977,1725573089336,-500.0,0.00023013,2]
[337276978,1725573089346,-500.0,0.00023013,2]
[337276979,1725573089356,-500.0,0.00023013,2]
[337276980,1725573089366,-500.0,0.00023013,2]
[337276981,1725573089383,-500.0,0.00023013,2]
[337276982,1725573089395,-970.45,0.00023013,2]
[337276983,1725573089405,-500.0,0.00023013,2]
[337276984,1725573089416,-500.0,0.00023013,2]
[337276985,1725573089426,-500.0,0.00023013,2]
[337276986,1725573089436,-875.36,0.00023013,2]
[337276987,1725573089446,-500.0,0.00023013,2]
[337276988,1725573089456,-1709.21,0.00023013,2]
[337276989,1725573089465,-500.0,0.00023013,2]
[337276990,1725573089477,-5424.64,0.00023013,2]
[337276991,1725573089487,-500.0,0.00023013,2]
[337276992,1725573089497,-500.0,0.00023013,2]
[337276993,1725573089507,-500.0,0.00023013,2]
[337276994,1725573089517,-1320.86,0.00023013,2]
[337276995,1725573089528,-646.37,0.00023013,2]
[337276996,1725573089538,-777.39,0.00023013,2]
[337276997,1725573089549,-4959.4,0.00023013,2]
[337276998,1725573089559,-359.0173226,0.00023013,2]
[337276999,1725573089569,-491.06332831,0.00023013,2]
[337277000,1725573089579,-1196.83,0.00023013,2]
[337277001,1725573089589,-500.0,0.00023013,2]
[337277002,1725573089599,-589.02,0.00023013,2]
[337277003,1725573089611,-500.0,0.00023013,2]
[337277004,1725573089621,-500.0,0.00023013,2]
[337277005,1725573089631,-500.0,0.00023013,2]
[337277006,1725573089641,-500.0,0.00023013,2]
[337277007,1725573089651,-500.0,0.00023013,2]
[337277008,1725573089844,-500.0,0.00023013,2]
[337277009,1725573089857,-500.0,0.00023013,2]
[337277010,1725573089869,-500.0,0.00023013,2]
[337277011,1725573089881,-948.09,0.00023013,2]
[337277012,1725573089893,-500.0,0.00023013,2]
[337277013,1725573089904,-500.0,0.00023013,2]
[337277014,1725573089916,-500.0,0.00023013,2]
[337277015,1725573089927,-500.0,0.00023013,2]
[337277016,1725573089937,-500.0,0.00023013,2]
[337277017,1725573089948,-500.0,0.00023013,2]
[337277018,1725573089959,-500.0,0.00023013,2]
[337277019,1725573089970,-500.0,0.00023013,2]
[337277020,1725573089980,-500.0,0.00023013,2]
[337277021,1725573089991,-946.95,0.00023013,2]
[337277022,1725573090001,-500.0,0.00023013,2]
[337277023,1725573090011,-500.0,0.00023013,2]
[337277024,1725573090021,-500.0,0.00023013,2]
[337277025,1725573090031,-500.0,0.00023013,2]
[337277026,1725573090041,-1557.31,0.00023013,2]
[337277027,1725573090051,-500.0,0.00023013,2]
[337277028,1725573090061,-6005.41,0.00023013,2]
[337277029,1725573090071,-500.0,0.00023013,2]
[337277030,1725573090082,-500.0,0.00023013,2]
[337277031,1725573090093,-7130.97,0.00023013,2]
[337277032,1725573090104,-500.0,0.00023013,2]
[337277033,1725573090115,-500.0,0.00023013,2]
[337277034,1725573090126,-500.0,0.00023013,2]
[337277035,1725573090135,-983.46,0.00023013,2]
[337277036,1725573090145,-500.0,0.00023013,2]
[337277037,1725573090155,-788.94,0.00023013,2]
[337277038,1725573090165,-500.0,0.00023013,2]
[337277039,1725573090175,-1361.66,0.00023013,2]
[337277040,1725573090185,-500.0,0.00023013,2]
[337277041,1725573090195,-500.0,0.00023013,2]
[337277042,1725573090206,-3476.04,0.00023013,2]
[337277043,1725573090216,-745.29,0.00023013,2]
[337277044,1725573090227,-500.0,0.00023013,2]
[337277045,1725573090237,-500.0,0.00023013,2]
[337277046,1725573090246,-500.0,0.00023013,2]
[337277047,1725573090256,-500.0,0.00023013,2]
[337277048,1725573090266,-1053.94,0.00023013,2]
[337277049,1725573090276,-500.0,0.00023013,2]
[337277050,1725573090287,-500.0,0.00023013,2]
[337277051,1725573090296,-500.0,0.00023013,2]
[337277052,1725573090307,-500.0,0.00023013,2]
[337277053,1725573090317,-464.53163965,0.00023013,2]
[337277054,1725573090327,-899.19,0.00023013,2]
[337277055,1725573090338,-500.0,0.00023013,2]
[337277056,1725573090350,-1880.59,0.00023013,2]
[337277057,1725573090362,-648.04137719,0.00023013,2]
[337277058,1725573090375,-563.87,0.00023013,2]
[337277059,1725573090386,-194.65257798,0.00023013,2]
[337277060,1725573090397,-500.0,0.00023013,2]
[337277061,1725573090413,-500.0,0.00023013,2]
[337277062,1725573090424,-1000.0,0.00023021,2]
[337277063,1725573090436,-453.63817819,0.000231,4]
[337277064,1725573090448,-453.63817819,0.000231,4]
[337277065,1725573090460,-420.0,0.0002322,2]
[337277066,1725573090471,-399.58,0.00023244,2]
[337277067,1725573090481,-500.0,0.00023287,2]
[337277068,1725573090492,-500.0,0.00023287,2]
[337277069,1725573090503,-437.48223814,0.00023287,2]
[337277070,1725573090515,-500.0,0.00023287,2]
[337277071,1725573090529,-500.0,0.00023287,2]
[337277072,1725573090539,-500.0,0.00023287,2]
[337277073,1725573090550,-1061.25,0.00023287,2]
[337277074,1725573090561,-888.02,0.00023287,2]
[337277075,1725573090573,-500.0,0.00023287,2]
[337277076,1725573090583,-500.0,0.00023287,2]
[337277077,1725573090595,-500.0,0.00023287,2]
[337277078,1725573090606,-500.0,0.00023287,2]
[337277079,1725573090618,-500.0,0.00023287,2]
[337277080,1725573090630,-500.0,0.00023287,2]
[337277081,1725573090641,-500.0,0.00023287,2]
[337277082,1725573090652,-500.0,0.00023287,2]
[337277083,1725573090664,-500.0,0.00023287,2]
[337277084,1725573090676,-500.0,0.00023287,2]
[337277085,1725573090687,-1260.83,0.00023287,2]
[337277086,1725573090698,-500.0,0.00023287,2]
[337277087,1725573090708,-500.0,0.00023287,2]
[337277088,1725573090718,-500.0,0.00023287,2]
[337277089,1725573090729,-500.0,0.00023287,2]
[337277090,1725573090740,-500.0,0.00023287,2]
[337277091,1725573090751,-500.0,0.00023287,2]
[337277092,1725573090762,-500.0,0.00023287,2]
[337277093,1725573090774,-500.0,0.00023287,2]
[337277094,1725573090784,-500.0,0.00023287,2]
[337277095,1725573090796,-500.0,0.00023287,2]
[337277096,1725573090807,-500.0,0.00023287,2]
[337277097,1725573090816,-500.0,0.00023287,2]
[337277098,1725573090826,-500.0,0.00023287,2]
[337277099,1725573090836,-829.3,0.00023287,2]
[337277100,1725573090849,-500.0,0.00023287,2]
[337277101,1725573090860,-500.0,0.00023287,2]
[337277102,1725573090873,-500.0,0.00023287,2]
[337277103,1725573090884,-500.0,0.00023287,2]
[337277104,1725573090895,-500.0,0.00023287,2]
[337277105,1725573090907,-500.0,0.00023287,2]
[337277106,1725573090918,-500.0,0.00023287,2]
[337277107,1725573090929,-648.59949356,0.00023287,2]
[337277108,1725573090940,-500.0,0.00023287,2]
[337277109,1725573090952,-756.67,0.00023287,2]
[337277110,1725573090964,-500.0,0.00023287,2]
[337277111,1725573090973,-500.0,0.00023287,2]
[337277112,1725573090984,-500.0,0.00023287,2]
[337277113,1725573090996,-500.0,0.00023287,2]
[337277114,1725573091007,-500.0,0.00023287,2]
[337277115,1725573091018,-500.0,0.00023287,2]
[337277116,1725573091029,-500.0,0.00023287,2]
[337277117,1725573091041,-500.0,0.00023287,2]
[337277118,1725573091052,-500.0,0.00023287,2]
[337277119,1725573091063,-500.0,0.00023287,2]
[337277120,1725573091074,-419.15090162,0.00023287,2]
[337277121,1725573091086,-500.0,0.00023287,2]
[337277122,1725573091096,-500.0,0.00023287,2]
[337277123,1725573091108,-500.0,0.00023287,2]
[337277124,1725573091118,-500.0,0.00023287,2]
[337277125,1725573091129,-500.0,0.00023287,2]
[337277126,1725573091140,-529.72,0.00023287,2]
[337277127,1725573091150,-500.0,0.00023287,2]
[337277128,1725573091163,-500.0,0.00023287,2]
[337277129,1725573091173,-500.0,0.00023287,2]
[337277130,1725573091185,-513.6000323,0.00023287,2]
[337277131,1725573091196,-516.72067447,0.00023287,2]
[337277132,1725573091207,-500.0,0.00023287,2]
[337277133,1725573091220,-1089.23,0.00023287,2]
[337277134,1725573091231,-776.91,0.00023287,2]
[337277135,1725573091244,-500.0,0.00023287,2]
[337277136,1725573091254,-500.0,0.00023287,2]
[337277137,1725573091266,-500.0,0.00023287,2]
[337277138,1725573091277,-500.0,0.00023287,2]
[337277139,1725573091288,-500.0,0.00023287,2]
[337277140,1725573091302,-500.0,0.00023287,2]
[337277141,1725573091313,-500.0,0.00023287,2]
[337277142,1725573091323,-1257.36,0.00023287,2]
[337277143,1725573091335,-500.0,0.00023287,2]
[337277144,1725573091347,-1799.22,0.00023287,2]
[337277145,1725573091358,-500.0,0.00023287,2]
[337277146,1725573091369,-872.21,0.00023287,2]
[337277147,1725573091381,-500.0,0.00023287,2]
[337277148,1725573091392,-500.0,0.00023287,2]
[337277149,1725573091404,-500.0,0.00023287,2]
[337277150,1725573091416,-500.0,0.00023287,2]
[337277151,1725573091428,-690.94,0.00023287,2]
[337277152,1725573091441,-500.0,0.00023287,2]
[337277153,1725573091453,-500.0,0.00023287,2]
[337277154,1725573091465,-500.0,0.00023287,2]
[337277155,1725573091476,-500.0,0.00023287,2]
[337277156,1725573091486,-500.0,0.00023287,2]
[337277157,1725573091499,-500.0,0.00023287,2]
[337277158,1725573091510,-500.0,0.00023287,2]
[337277159,1725573091522,-722.69,0.00023287,2]
[337277160,1725573091534,-500.0,0.00023287,2]
[337277161,1725573091547,-500.0,0.00023287,2]
[337277162,1725573091557,-500.0,0.00023287,2]
[337277163,1725573091569,-1492.06,0.00023287,2]
[337277164,1725573091580,-500.0,0.00023287,2]
[337277165,1725573091591,-500.0,0.00023287,2]
[337277166,1725573091603,-526.84563288,0.00023287,2]
[337277167,1725573091614,-500.0,0.00023287,2]
[337277168,1725573091625,-500.0,0.00023287,2]
[337277169,1725573091636,-500.0,0.00023287,2]
[337277170,1725573091647,-500.0,0.00023287,2]
[337277171,1725573091658,-500.0,0.00023287,2]
[337277172,1725573091670,-500.0,0.00023287,2]
[337277173,1725573091682,-500.0,0.00023287,2]
[337277174,1725573091694,-802.19,0.00023287,2]